fUST/lending_fUST_20241215
["ID","MTS","AMOUNT","RATE_DAILY","PERIOD"]
[345433692,1734255041794,-500.0,0.00027664,2]
[345433693,1734255041804,-500.0,0.00027664,2]
[345433694,1734255041814,-500.0,0.00027664,2]
[345433695,1734255041824,-500.0,0.00027664,2]
[345433696,1734255041835,-500.0,0.00027664,2]
[345433697,1734255041846,-454.29307179,0.00027664,2]
[345433698,1734255041856,-500.0,0.00027664,2]
[345433699,1734255041867,-500.0,0.00027664,2]
[345433700,1734255041876,-500.0,0.00027664,2]
[345433701,1734255041886,-500.0,0.00027664,2]
[345433702,1734255041895,-500.0,0.00027664,2]
[345433703,1734255041905,-500.0,0.00027664,2]
[345433704,1734255041914,-500.0,0.00027664,2]
[345433705,1734255041924,-500.0,0.00027664,2]
[345433706,1734255041933,-500.0,0.00027664,2]
[345433707,1734255041942,-500.0,0.00027664,2]
[345433708,1734255041951,-500.0,0.00027664,2]
[345433709,1734255041960,-500.0,0.00027664,2]
[345433710,1734255041971,-500.0,0.00027664,2]
[345433711,1734255041983,-500.0,0.00027664,2]
[345433712,1734255041993,-500.0,0.00027664,2]
[345433713,1734255042003,-500.0,0.00027664,2]
[345433714,1734255042012,-500.0,0.00027664,2]
[345433715,1734255042024,-500.0,0.00027664,2]
[345433716,1734255042033,-500.0,0.00027664,2]
[345433717,1734255042044,-500.0,0.00027664,2]
[345433718,1734255042054,-500.0,0.00027664,2]
[345433719,1734255042063,-500.0,0.00027664,2]
[345433720,1734255042072,-500.0,0.00027664,2]
[345433721,1734255042083,-500.0,0.00027664,2]
[345433722,1734255042093,-500.0,0.00027664,2]
[345433723,1734255042102,-500.0,0.00027664,2]
[345433724,1734255042112,-500.0,0.00027664,2]
[345433725,1734255042121,-500.0,0.00027664,2]
[345433726,1734255042131,-500.0,0.00027664,2]
[345433727,1734255042140,-500.0,0.00027664,2]
[345433728,1734255042149,-500.0,0.00027664,2]
[345433729,1734255042159,-500.0,0.00027664,2]
[345433730,1734255042169,-500.0,0.00027664,2]
[345433731,1734255042179,-500.0,0.00027664,2]
[345433732,1734255042188,-500.0,0.00027664,2]
[345433733,1734255042197,-500.0,0.00027664,2]
[345433734,1734255042207,-500.0,0.00027664,2]
[345433735,1734255042217,-500.0,0.00027664,2]
[345433736,1734255042227,-500.0,0.00027664,2]
[345433737,1734255042236,-500.0,0.00027664,2]
[345433738,1734255042246,-500.0,0.00027664,2]
[345433739,1734255042255,-500.0,0.00027664,2]
[345433740,1734255042264,-163.480462,0.00027666,7]
[345433741,1734255042274,-158.687485,0.00027669,7]
[345433742,1734255042283,-500.0,0.00027671,7]
[345433743,1734255042293,-500.0,0.00027671,7]
[345433744,1734255042302,-505.82962649,0.00027671,7]
[345433745,1734255042312,-500.0,0.00027671,7]
[345433746,1734255042322,-508.71084206,0.00027671,7]
[345433747,1734255042331,-500.0,0.00027671,7]
[345433748,1734255042340,-1000.0,0.00027671,2]
[345433749,1734255042350,-500.0,0.00027671,7]
[345433750,1734255042360,-301.00379241,0.00027671,7]
[345433751,1734255042371,-508.35467617,0.00027671,7]
[345433752,1734255042381,-500.0,0.00027671,7]
[345433753,1734255042391,-500.0,0.00027671,7]
[345433754,1734255042401,-418.69582843,0.00027671,7]
[345433755,1734255042410,-500.0,0.00027671,7]
[345433756,1734255042420,-500.0,0.00027671,7]
[345433757,1734255042430,-500.0,0.00027671,7]
[345433758,1734255042439,-500.0,0.00027671,7]
[345433759,1734255042449,-500.0,0.00027671,7]
[345433760,1734255042458,-500.0,0.00027671,2]
[345433761,1734255042467,-500.0,0.00027671,7]
[345433762,1734255042476,-500.0,0.00027671,7]
[345433763,1734255042486,-500.0,0.00027671,7]
[345433764,1734255042497,-500.0,0.00027671,7]
[345433765,1734255042506,-737.64,0.00027671,7]
[345433766,1734255042515,-609.65309116,0.00027671,7]
[345433767,1734255042527,-500.0,0.00027671,7]
[345433768,1734255042536,-153.96760743,0.00027671,7]
[345433769,1734255042545,-500.0,0.00027671,7]
[345433770,1734255042555,-502.74338915,0.00027671,7]
[345433771,1734255042565,-500.0,0.00027671,7]
[345433772,1734255042574,-464.71061844,0.00027671,7]
[345433773,1734255042584,-500.0,0.00027671,7]
[345433774,1734255042594,-500.0,0.00027671,7]
[345433775,1734255042603,-500.0,0.00027671,7]
[345433776,1734255042612,-500.0,0.00027671,7]
[345433777,1734255042621,-500.0,0.00027671,7]
[345433778,1734255042630,-500.0,0.00027671,7]
[345433779,1734255042640,-500.0,0.00027671,7]
[345433780,1734255042649,-726.57,0.00027671,7]
[345433781,1734255042659,-500.0,0.00027671,7]
[345433782,1734255042668,-500.0,0.00027671,7]
[345433783,1734255042678,-500.0,0.00027671,7]
[345433784,1734255042687,-500.0,0.00027671,7]
[345433785,1734255042696,-500.0,0.00027671,7]
[345433786,1734255042706,-500.0,0.00027671,7]
[345433787,1734255042715,-331.68413449,0.00027671,7]
[345433788,1734255042725,-500.0,0.00027671,7]
[345433789,1734255042734,-529.51682103,0.00027671,7]
[345433790,1734255042744,-500.0,0.00027671,7]
[345433791,1734255042753,-500.0,0.00027671,7]
[345433792,1734255042764,-500.0,0.00027671,7]
[345433793,1734255042775,-522.95388618,0.00027671,7]
[345433794,1734255042784,-603.78870971,0.00027671,7]
[345433795,1734255042793,-610.23,0.00027671,7]
[345433796,1734255042803,-500.0,0.00027671,7]
[345433797,1734255042813,-500.0,0.00027671,7]
[345433798,1734255042823,-500.0,0.00027671,7]
[345433799,1734255042833,-457.62354678,0.00027671,7]
[345433800,1734255042843,-500.0,0.00027671,7]
[345433801,1734255042852,-638.81854226,0.00027671,7]
[345433802,1734255042861,-500.0,0.00027671,7]
[345433804,1734255042871,-4166.66,0.00027671,2]
[345433805,1734255042964,-500.0,0.00027671,7]
[345433806,1734255042979,-500.0,0.00027671,7]
[345433807,1734255042989,-500.0,0.00027673,5]
[345433808,1734255043000,-1309.62506367,0.00027777,7]
[345433810,1734255043010,-2173.0,0.00027884,2]
[345433811,1734255043024,-533.0,0.00027884,2]
[345433812,1734255043033,-151.0,0.000279,16]
[345433813,1734255043045,-500.0,0.00027945,7]
[345433814,1734255043056,-323.11248809,0.00027945,7]
[345433815,1734255043067,-1000.0,0.00027945,2]
[345433816,1734255043075,-508.70675125,0.00027945,7]
[345433817,1734255043084,-500.0,0.00027945,7]
[345433818,1734255043094,-564.86,0.00027945,7]
[345433819,1734255043104,-500.0,0.00027945,7]
[345433820,1734255043114,-500.0,0.00027945,2]
[345433821,1734255043124,-737.64,0.00027945,7]
[345433822,1734255043133,-500.0,0.00027945,7]
[345433824,1734255043143,-500.0,0.00027945,7]
[345433825,1734255043153,-500.0,0.00027945,7]
[345433826,1734255043162,-500.0,0.00027945,7]
[345433827,1734255043172,-500.0,0.00027945,7]
[345433828,1734255043182,-500.0,0.00027945,7]
[345433829,1734255043191,-726.57,0.00027945,7]
[345433830,1734255043201,-500.0,0.00027945,7]
[345433831,1734255043210,-500.0,0.00027945,7]
[345433833,1734255043220,-500.0,0.00027945,7]
[345433835,1734255043229,-500.0,0.00027945,7]
[345433837,1734255043239,-500.0,0.00027945,7]
[345433839,1734255043248,-610.23,0.00027945,7]
[345433841,1734255043257,-500.0,0.00027945,7]
[345433844,1734255043267,-500.0,0.00027945,7]
[345433845,1734255043280,-500.0,0.00027945,7]
[345433848,1734255043289,-4166.66,0.00027945,2]
[345433850,1734255043300,-413.99974102,0.00027969,2]
[345433852,1734255043310,-20210.38653,0.00028,25]
[345433854,1734255043320,-550.0,0.00028,120]
[345433856,1734255043330,-1998.0,0.00028,5]
[345433858,1734255043340,-151.0,0.00028,15]
[345433860,1734255043349,-9473.32863958,0.00028,7]
[345433862,1734255043360,-289.625,0.0002804,2]
[345433864,1734255043369,-823.39190259,0.00028071,2]
[345433866,1734255043379,-500.0,0.00028077,2]
[345433868,1734255043389,-500.0,0.00028197,2]
[345433870,1734255043398,-151.0,0.000282,19]
[345433872,1734255043408,-500.0,0.00028219,7]
[345433874,1734255043418,-1000.0,0.00028219,2]
[345433876,1734255043429,-500.0,0.00028219,7]
[345433878,1734255043438,-500.0,0.00028219,7]
[345433880,1734255043448,-500.0,0.00028219,2]
[345433881,1734255043457,-737.64,0.00028219,7]
[345433882,1734255043467,-500.0,0.00028219,7]
[345433883,1734255043477,-500.0,0.00028219,7]
[345433884,1734255043486,-500.0,0.00028219,7]
[345433887,1734255043495,-500.0,0.00028219,7]
[345433888,1734255043505,-500.0,0.00028219,7]
[345433889,1734255043515,-500.0,0.00028219,7]
[345433890,1734255043526,-726.57,0.00028219,7]
[345433891,1734255043535,-515.75806316,0.00028219,7]
[345433892,1734255043545,-177.54307986,0.00028219,7]
[345433893,1734255043554,-500.0,0.00028219,7]
[345433894,1734255043564,-500.0,0.00028219,7]
[345433895,1734255043574,-500.0,0.00028219,7]
[345433896,1734255043584,-610.23,0.00028219,7]
[345433897,1734255043595,-500.0,0.00028219,7]
[345433898,1734255043605,-500.0,0.00028219,7]
[345433899,1734255043614,-500.0,0.00028219,7]
[345433900,1734255043624,-4166.66,0.00028219,2]
[345433901,1734255043634,-151.0,0.000283,20]
[345433902,1734255043644,-502.76606244,0.00028304,2]
[345433903,1734255043654,-151.0,0.000284,19]
[345433904,1734255043663,-156.93,0.000284,31]
[345433905,1734255043673,-151.0,0.000284,16]
[345433906,1734255043682,-413.99974102,0.00028468,2]
[345433908,1734255043691,-500.0,0.00028473,5]
[345433910,1734255043701,-420.0,0.00028481,2]
[345433912,1734255043711,-417.96046037,0.00028493,2]
[345433914,1734255043719,-500.0,0.00028493,7]
[345433915,1734255043729,-500.0,0.00028493,2]
[345433916,1734255043738,-737.64,0.00028493,7]
[345433917,1734255043747,-500.0,0.00028493,7]
[345433918,1734255043757,-500.0,0.00028493,7]
[345433919,1734255043767,-500.0,0.00028493,7]
[345433920,1734255043778,-500.0,0.00028493,7]
[345433921,1734255043787,-500.0,0.00028493,7]
[345433922,1734255043796,-500.0,0.00028493,7]
[345433923,1734255043806,-726.57,0.00028493,7]
[345433924,1734255043815,-500.0,0.00028493,7]
[345433925,1734255043825,-500.0,0.00028493,7]
[345433926,1734255043835,-500.0,0.00028493,7]
[345433927,1734255043844,-610.23,0.00028493,7]
[345433928,1734255043853,-500.0,0.00028493,7]
[345433929,1734255043863,-500.0,0.00028493,7]
[345433930,1734255043873,-500.0,0.00028493,7]
[345433931,1734255043883,-4166.66,0.00028493,2]
[345433932,1734255043892,-637.51050034,0.00028499,2]
[345433933,1734255043901,-175.31861585,0.00028499,2]
[345433934,1734255043910,-240.87640033,0.00028499,2]
[345433935,1734255043919,-1004290.77673018,0.000285,5]
[345433936,1734255043939,-19066.46362235,0.000285,5]
[345433937,1734255044037,-2370.0,0.00027884,2]
[345433938,1734255044048,-38047.84260096,0.000285,5]
[345434086,1734255151789,158.99834,0.00013973,2]
[345434099,1734256146027,164.467672,0.00013973,2]
[345434127,1734256232860,-300.0,0.00026531,2]
[345434128,1734256232870,-300.0,0.00026531,2]
[345434129,1734256232879,-9940.790235,0.00026532,2]
[345434131,1734256232888,-197.333334,0.00027002,2]
[345434134,1734256232898,-315.14367787,0.00027025,2]
[345434137,1734256232907,-332.012,0.0002707,2]
[345434139,1734256232916,-500.0,0.00027397,7]
[345434142,1734256232926,-500.0,0.00027397,7]
[345434143,1734256232935,-526.0,0.00027397,7]
[345434144,1734256232944,-500.0,0.00027397,7]
[345434146,1734256232953,-503.12913656,0.00027397,7]
[345434147,1734256232962,-616.71,0.00027397,7]
[345434148,1734256232972,-500.0,0.00027397,7]
[345434150,1734256232981,-500.0,0.00027397,2]
[345434152,1734256232990,-500.0,0.00027397,7]
[345434168,1734256233124,-500.0,0.00027397,7]
[345434170,1734256233134,-500.0,0.00027397,2]
[345434172,1734256233143,-500.0,0.00027397,7]
[345434174,1734256233153,-500.0,0.00027397,7]
[345434176,1734256233162,-500.0,0.00027397,7]
[345434178,1734256233171,-599.45727978,0.00027397,7]
[345434180,1734256233181,-500.0,0.00027397,7]
[345434182,1734256233190,-3472.22,0.00027397,2]
[345434184,1734256233199,-500.0,0.0002767,7]
[345434186,1734256233209,-500.0,0.0002767,7]
[345434188,1734256233218,-666.73,0.0002767,7]
[345434190,1734256233227,-500.0,0.0002767,7]
[345434191,1734256233236,-500.0,0.0002767,7]
[345434193,1734256233247,-500.0,0.0002767,7]
[345434195,1734256233257,-500.0,0.00027671,7]
[345434197,1734256233266,-500.0,0.00027671,7]
[345434199,1734256233276,-500.0,0.00027671,2]
[345434201,1734256233285,-500.0,0.00027671,7]
[345434203,1734256233295,-500.0,0.00027671,7]
[345434205,1734256233304,-500.0,0.00027671,7]
[345434207,1734256233313,-500.0,0.00027671,7]
[345434208,1734256233322,-3472.22,0.00027671,2]
[345434210,1734256233332,-155.2499029,0.00027784,2]
[345434213,1734256233341,-2153.0,0.00027884,2]
[345434215,1734256233351,-533.0,0.00027884,2]
[345434217,1734256233361,-2279.68534498,0.00027884,2]
[345434393,1734256238904,-90.31465502,0.00027884,2]
[345434394,1734256238916,-500.0,0.00027944,7]
[345434395,1734256238926,-500.0,0.00027944,7]
[345434396,1734256238937,-666.73,0.00027944,7]
[345434397,1734256238948,-500.0,0.00027944,7]
[345434398,1734256238957,-500.0,0.00027944,7]
[345434399,1734256238966,-500.0,0.00027944,7]
[345434400,1734256238975,-500.0,0.00027944,7]
[345434401,1734256238985,-500.0,0.00027945,7]
[345434402,1734256238995,-500.0,0.00027945,2]
[345434403,1734256239006,-500.0,0.00027945,7]
[345434404,1734256239015,-500.0,0.00027945,7]
[345434405,1734256239024,-500.0,0.00027945,7]
[345434406,1734256239033,-3472.22,0.00027945,2]
[345434407,1734256239043,-10000.0,0.00028,3]
[345434408,1734256239053,-91364.56127314,0.00028,2]
[345434409,1734256239062,-155.24990288,0.00028095,2]
[345434410,1734256239073,-500.0,0.00028218,7]
[345434411,1734256239082,-500.0,0.00028218,7]
[345434412,1734256239092,-666.73,0.00028218,7]
[345434413,1734256239102,-500.0,0.00028218,7]
[345434414,1734256239112,-500.0,0.00028218,7]
[345434415,1734256239123,-500.0,0.00028218,7]
[345434416,1734256239132,-500.0,0.00028219,7]
[345434417,1734256239141,-500.0,0.00028219,2]
[345434418,1734256239150,-500.0,0.00028219,7]
[345434419,1734256239160,-500.0,0.00028219,7]
[345434420,1734256239169,-500.0,0.00028219,7]
[345434421,1734256239178,-3472.22,0.00028219,2]
[345434422,1734256239187,-10000.0,0.000283,5]
[345434423,1734256239196,-175.76073162,0.00028399,2]
[345434424,1734256239205,-156.93,0.000284,31]
[345434425,1734256239214,-175.76073162,0.000284,2]
[345434426,1734256239223,-155.24990288,0.00028406,2]
[345434427,1734256239232,-7005.5584015,0.00028415,2]
[345434428,1734256239241,-417.96046037,0.00028491,2]
[345434429,1734256239251,-500.0,0.00028491,7]
[345434430,1734256239260,-500.0,0.00028491,7]
[345434431,1734256239269,-633.81,0.00028491,7]
[345434432,1734256239278,-500.0,0.00028491,7]
[345434433,1734256239287,-500.0,0.00028491,7]
[345434434,1734256239297,-508.52,0.00028491,7]
[345434435,1734256239306,-500.0,0.00028491,7]
[345434436,1734256239315,-500.0,0.00028492,7]
[345434437,1734256239324,-500.0,0.00028492,7]
[345434438,1734256239333,-666.73,0.00028492,7]
[345434439,1734256239343,-500.0,0.00028492,7]
[345434440,1734256239352,-500.0,0.00028492,7]
[345434441,1734256239361,-500.0,0.00028492,7]
[345434442,1734256239370,-500.0,0.00028493,7]
[345434443,1734256239382,-500.0,0.00028493,2]
[345434444,1734256239392,-500.0,0.00028493,7]
[345434445,1734256239401,-500.0,0.00028493,7]
[345434446,1734256239410,-500.0,0.00028493,7]
[345434447,1734256239419,-3472.22,0.00028493,2]
[345434448,1734256239430,-504.96291327,0.00028499,7]
[345434449,1734256239439,-500.0,0.00028499,2]
[345434450,1734256239448,-240.87640033,0.00028499,2]
[345434451,1734256239457,-246.23107595,0.00028499,2]
[345434452,1734256239466,-235.12110232,0.00028499,2]
[345434453,1734256239476,-500.0,0.00028499,2]
[345434454,1734256239485,-213.61123809,0.00028499,2]
[345434455,1734256239494,-500.0,0.00028499,2]
[345434456,1734256239503,-394.87816966,0.00028499,2]
[345434457,1734256239514,-192.60032882,0.00028499,2]
[345434458,1734256239523,-500.0,0.00028499,2]
[345434459,1734256239532,-500.0,0.00028499,2]
[345434460,1734256239541,-500.0,0.00028499,2]
[345434461,1734256239551,-500.0,0.00028499,2]
[345434462,1734256239560,-500.0,0.00028499,2]
[345434463,1734256239569,-500.0,0.00028499,2]
[345434464,1734256239578,-500.0,0.00028499,2]
[345434465,1734256239587,-217.14367464,0.00028499,2]
[345434466,1734256239596,-500.0,0.00028499,2]
[345434467,1734256239605,-500.0,0.00028499,2]
[345434468,1734256239615,-500.0,0.00028499,2]
[345434469,1734256239624,-500.0,0.00028499,2]
[345434470,1734256239633,-156.50072182,0.00028499,2]
[345434471,1734256239642,-500.0,0.00028499,2]
[345434472,1734256239651,-528.45639858,0.00028499,2]
[345434473,1734256239661,-500.0,0.00028499,2]
[345434474,1734256239669,-500.0,0.00028499,2]
[345434475,1734256239679,-500.0,0.00028499,2]
[345434476,1734256239688,-500.0,0.00028499,2]
[345434477,1734256239697,-500.0,0.00028499,2]
[345434478,1734256239706,-500.0,0.00028499,2]
[345434479,1734256239714,-500.0,0.00028499,2]
[345434480,1734256239724,-500.0,0.00028499,2]
[345434481,1734256239733,-500.0,0.00028499,2]
[345434482,1734256239742,-500.0,0.00028499,2]
[345434483,1734256239751,-500.0,0.00028499,2]
[345434484,1734256239760,-500.0,0.00028499,2]
[345434485,1734256239769,-500.0,0.00028499,2]
[345434486,1734256239778,-500.0,0.00028499,2]
[345434487,1734256239788,-500.0,0.00028499,2]
[345434488,1734256239797,-500.0,0.00028499,2]
[345434489,1734256239807,-500.0,0.00028499,2]
[345434490,1734256239816,-500.0,0.00028499,2]
[345434491,1734256239825,-500.0,0.00028499,2]
[345434492,1734256239835,-500.0,0.00028499,2]
[345434493,1734256239844,-554.63530398,0.00028499,2]
[345434494,1734256239853,-500.0,0.00028499,2]
[345434495,1734256239862,-500.0,0.00028499,2]
[345434496,1734256239872,-500.0,0.00028499,2]
[345434497,1734256239881,-500.0,0.00028499,2]
[345434498,1734256239890,-500.0,0.00028499,2]
[345434499,1734256239899,-448.36612985,0.000285,2]
[345434500,1734256239908,-25794.31284882,0.000285,2]
[345434501,1734256239918,-818019.32034191,0.000285,5]
[345434659,1734256243714,-252.87346695,0.00027995,2]
[345434660,1734256243724,-615.89240559,0.000285,5]
[345436157,1734256846071,162.0,0.00022,2]
[345436158,1734256846377,162.0,0.00023014,2]
[345436159,1734256847075,162.0,0.00026581,2]
[345436160,1734256847375,165.0,0.00024164,2]
[345436163,1734256995385,11392.0,0.00026945,2]
[345436164,1734257046357,160.935936,0.00013973,2]
[345436343,1734257435361,-603.74217233,0.00026844,5]
[345436344,1734257435371,-300.0,0.00026944,2]
[345436345,1734257435381,-300.0,0.00026944,2]
[345436346,1734257435392,-778.07782767,0.00026945,2]
[345438994,1734257724676,6137.09826697,0.00024,30]
[345438995,1734258000378,641.08501413,0.00022,6]
[345438997,1734258032730,160.935936,0.00013973,2]
[345438998,1734258517416,32270.23688472,0.0001999,2]
[345439119,1734258638248,-178.0,0.00022,2]
[345439121,1734258638257,-178.0,0.00023014,2]
[345439123,1734258638267,-300.0,0.00026273,2]
[345439125,1734258638277,-300.0,0.00026273,2]
[345439127,1734258638286,-224.18306493,0.00026274,2]
[345439129,1734258638295,-12709.9221723,0.00026274,2]
[345439131,1734258638308,-5805.40642406,0.00026762,2]
[345439133,1734258638317,-155.24990288,0.00026886,2]
[345439135,1734258638327,-152.0,0.00026986,2]
[345439137,1734258638336,-335.307,0.0002707,2]
[345439139,1734258638345,-500.0,0.00027397,7]
[345439141,1734258638355,-500.0,0.00027397,7]
[345439143,1734258638365,-500.0,0.00027397,2]
[345439145,1734258638374,-500.0,0.00027397,7]
[345439147,1734258638383,-500.0,0.00027397,7]
[345439149,1734258638393,-500.0,0.00027397,7]
[345439151,1734258638402,-503.89827095,0.00027397,7]
[345439153,1734258638411,-5302.31207659,0.000275,2]
[345439155,1734258638420,-298.82934897,0.00027671,7]
[345439157,1734258638430,-500.0,0.00027671,7]
[345439159,1734258638439,-500.0,0.00027671,7]
[345439161,1734258638449,-500.0,0.00027671,7]
[345439163,1734258638458,-500.0,0.00027671,7]
[345439165,1734258638468,-168.5823113,0.00027842,2]
[345439167,1734258638477,-555.61,0.00027941,7]
[345439169,1734258638487,-500.0,0.00027941,7]
[345439171,1734258638496,-500.0,0.00027941,7]
[345439173,1734258638506,-26785.22284881,0.00027942,2]
[345439175,1734258638515,-2748.84,0.00027942,2]
[345439177,1734258638525,-500.0,0.00027942,2]
[345439179,1734258638534,-4411.0,0.00027942,2]
[345439181,1734258638544,-500.0,0.00027942,7]
[345439183,1734258638557,-500.0,0.00027942,7]
[345439185,1734258638570,-500.0,0.00027942,7]
[345439187,1734258638580,-607.41,0.00027942,7]
[345439188,1734258638589,-500.0,0.00027942,7]
[345439190,1734258638599,-500.0,0.00027942,7]
[345439192,1734258638608,-500.0,0.00027942,7]
[345439194,1734258638616,-500.0,0.00027942,7]
[345439196,1734258638625,-191.48132527,0.00027942,18]
[345439198,1734258638634,-500.0,0.00027945,7]
[345439199,1734258638643,-500.0,0.00027945,7]
[345439201,1734258638653,-500.0,0.00027945,7]
[345439203,1734258638662,-500.0,0.00027945,7]
[345439206,1734258638672,-168.58231129,0.00027979,2]
[345439207,1734258638681,-500.0,0.00028049,2]
[345439210,1734258638692,-500.0,0.00028049,2]
[345439212,1734258638701,-350.72230242,0.00028049,2]
[345439214,1734258638710,-500.0,0.00028049,2]
[345439216,1734258638720,-500.0,0.00028049,2]
[345439218,1734258638729,-280.93959984,0.00028049,2]
[345439220,1734258638738,-500.0,0.00028049,2]
[345439222,1734258638748,-355.4635304,0.00028049,2]
[345439224,1734258638757,-500.0,0.00028049,2]
[345439225,1734258638766,-394.87816966,0.00028049,2]
[345439226,1734258638776,-325919.26126162,0.0002805,2]
[345439227,1734258638785,-168.58231129,0.00028115,2]
[345439228,1734258638795,-555.61,0.00028215,7]
[345439229,1734258638804,-500.0,0.00028215,7]
[345439230,1734258638814,-500.0,0.00028215,7]
[345439231,1734258638824,-2748.84,0.00028216,2]
[345439232,1734258638834,-500.0,0.00028216,2]
[345439233,1734258638843,-4411.0,0.00028216,2]
[345439234,1734258638853,-500.0,0.00028216,7]
[345439235,1734258638863,-500.0,0.00028216,7]
[345439236,1734258638872,-500.0,0.00028216,7]
[345439237,1734258638881,-607.41,0.00028216,7]
[345439238,1734258638890,-500.0,0.00028216,7]
[345439239,1734258638900,-500.0,0.00028216,7]
[345439240,1734258638909,-500.0,0.00028216,7]
[345439241,1734258638919,-500.0,0.00028216,7]
[345439242,1734258638929,-500.0,0.00028218,7]
[345439243,1734258638938,-500.0,0.00028219,7]
[345439244,1734258638947,-500.0,0.00028219,7]
[345439245,1734258638957,-500.0,0.00028219,7]
[345439246,1734258638966,-500.0,0.00028219,7]
[345439247,1734258638976,-151.0,0.0002839,6]
[345439248,1734258638986,-156.94,0.000284,31]
[345439249,1734258638995,-623.15998908,0.000284,2]
[345439250,1734258639004,-2500.0,0.00028471,3]
[345439251,1734258639014,-2500.0,0.00028479,3]
[345439252,1734258639027,-2500.0,0.00028488,3]
[345439253,1734258639036,-555.61,0.00028489,7]
[345439254,1734258639048,-500.0,0.00028489,7]
[345439255,1734258639062,-500.0,0.00028489,7]
[345439256,1734258639072,-2748.84,0.0002849,2]
[345439257,1734258639082,-500.0,0.0002849,2]
[345439258,1734258639092,-4411.0,0.0002849,2]
[345439259,1734258639102,-500.0,0.0002849,7]
[345439260,1734258639112,-500.0,0.0002849,7]
[345439261,1734258639121,-500.0,0.0002849,7]
[345439262,1734258639131,-500.0,0.0002849,7]
[345439263,1734258639139,-607.41,0.0002849,7]
[345439264,1734258639148,-500.0,0.0002849,7]
[345439265,1734258639157,-500.0,0.0002849,7]
[345439266,1734258639167,-500.0,0.0002849,7]
[345439267,1734258639176,-500.0,0.0002849,7]
[345439268,1734258639186,-500.00000004,0.00028493,7]
[345439269,1734258639195,-500.0,0.00028493,7]
[345439270,1734258639205,-500.0,0.00028493,7]
[345439271,1734258639214,-500.0,0.00028493,7]
[345439272,1734258639223,-2500.0,0.00028497,3]
[345439273,1734258639232,-500.0,0.00028499,7]
[345439274,1734258639242,-500.0,0.00028499,7]
[345439275,1734258639251,-500.0,0.00028499,7]
[345439276,1734258639260,-500.0,0.00028499,7]
[345439277,1734258639270,-500.0,0.00028499,7]
[345439278,1734258639280,-500.0,0.00028499,7]
[345439279,1734258639289,-500.0,0.00028499,7]
[345439280,1734258639301,-500.0,0.00028499,7]
[345439281,1734258639312,-500.0,0.00028499,7]
[345439282,1734258639322,-500.0,0.00028499,7]
[345439283,1734258639330,-500.0,0.00028499,7]
[345439284,1734258639340,-500.0,0.00028499,7]
[345439285,1734258639349,-500.0,0.00028499,7]
[345439286,1734258639359,-500.0,0.00028499,7]
[345439287,1734258639371,-500.0,0.00028499,7]
[345439288,1734258639381,-500.0,0.00028499,7]
[345439289,1734258639392,-500.0,0.00028499,7]